[Event "Titled Tuesday Blitz November 07 Late 2023"]
[White "komogro"]
[Black "Krzyzanowski, Marcin"]
[BlackFideId "1132199"]
[WhiteElo "2421"]
[BlackElo "2754"]
[Result "0-1"]
[Round "1"]
[TimeControl "180+1"]
[Date "2023.11.07"]
[WhiteClock "0:00:22"]
[BlackClock "0:00:24"]
[Board "64"]

1. d4 {[%clk 0:02:59]}  Nf6 {[%clk 0:02:59]} 2. c4 {[%clk 0:02:59]}  e6 {[%clk 0:02:59]} 3. Nf3 {[%clk 0:03:00]}  Bb4+ {[%clk 0:02:57]} 4. Bd2 {[%clk 0:03:00]}  c5 {[%clk 0:02:56]} 5. g3 {[%clk 0:02:56]}  O-O {[%clk 0:02:52]} 6. Bg2 {[%clk 0:02:52]}  Qb6 {[%clk 0:02:47]} 7. O-O {[%clk 0:02:24]}  cxd4 {[%clk 0:02:36]} 8. Nxd4 {[%clk 0:02:12]}  Nc6 {[%clk 0:02:27]} 9. Nb3 {[%clk 0:02:09]}  a5 {[%clk 0:02:20]} 10. Nc3 {[%clk 0:02:03]}  a4 {[%clk 0:02:19]} 11. Nc1 {[%clk 0:01:56]}  a3 {[%clk 0:02:17]} 12. bxa3 {[%clk 0:01:55]}  Bxa3 {[%clk 0:02:02]} 13. Nb3 {[%clk 0:01:50]}  h6 {[%clk 0:01:49]} 14. c5 {[%clk 0:01:46]}  Bxc5 {[%clk 0:01:45]} 15. Na4 {[%clk 0:01:46]}  Rxa4 {[%clk 0:01:43]} 16. Nxc5 {[%clk 0:01:45]}  Ra8 {[%clk 0:01:41]} 17. Qc2 {[%clk 0:01:41]}  Nd4 {[%clk 0:01:33]} 18. Qc4 {[%clk 0:01:41]}  Nxe2+ {[%clk 0:01:28]} 19. Qxe2 {[%clk 0:01:42]}  Qxc5 {[%clk 0:01:28]} 20. Rfc1 {[%clk 0:01:42]}  Qe7 {[%clk 0:01:14]} 21. a3 {[%clk 0:01:41]}  d6 {[%clk 0:01:08]} 22. Bb4 {[%clk 0:01:41]}  Rd8 {[%clk 0:01:09]} 23. Qb5 {[%clk 0:01:38]}  Qe8 {[%clk 0:01:03]} 24. Qb6 {[%clk 0:01:25]}  d5 {[%clk 0:00:53]} 25. Rc7 {[%clk 0:01:24]}  Ra6 {[%clk 0:00:44]} 26. Qe3 {[%clk 0:01:08]}  Rd7 {[%clk 0:00:32]} 27. Rac1 {[%clk 0:01:05]}  Rxc7 {[%clk 0:00:32]} 28. Rxc7 {[%clk 0:01:06]}  Rc6 {[%clk 0:00:33]} 29. Qe5 {[%clk 0:00:59]}  Nd7 {[%clk 0:00:26]} 30. Qf4 {[%clk 0:00:22]}  e5 {[%clk 0:00:24]} 0-1


[Site "https://www.chess.com"]

[Event "Titled Tuesday Blitz November 07 Late 2023"]
[White "Suspenser17"]
[Black "Hambleton, Aman"]
[BlackFideId "2606577"]
[WhiteElo "2413"]
[BlackElo "2741"]
[Result "0-1"]
[Round "1"]
[TimeControl "180+1"]
[Date "2023.11.07"]
[WhiteClock "0:00:23"]
[BlackClock "0:00:07"]
[Board "68"]

1. e4 {[%clk 0:03:00]}  c5 {[%clk 0:03:00]} 2. c3 {[%clk 0:03:00]}  Nf6 {[%clk 0:03:00]} 3. e5 {[%clk 0:03:00]}  Nd5 {[%clk 0:03:00]} 4. d4 {[%clk 0:03:01]}  cxd4 {[%clk 0:03:01]} 5. cxd4 {[%clk 0:03:00]}  d6 {[%clk 0:03:01]} 6. Nf3 {[%clk 0:03:00]}  e6 {[%clk 0:02:55]} 7. Bd3 {[%clk 0:02:56]}  Nc6 {[%clk 0:02:55]} 8. O-O {[%clk 0:02:55]}  dxe5 {[%clk 0:02:54]} 9. dxe5 {[%clk 0:02:55]}  Ndb4 {[%clk 0:02:52]} 10. Be4 {[%clk 0:02:49]}  Qxd1 {[%clk 0:02:49]} 11. Rxd1 {[%clk 0:02:49]}  Be7 {[%clk 0:02:49]} 12. Nc3 {[%clk 0:02:48]}  Na6 {[%clk 0:02:24]} 13. Be3 {[%clk 0:02:46]}  O-O {[%clk 0:02:19]} 14. a3 {[%clk 0:02:39]}  Nc5 {[%clk 0:02:15]} 15. Bc2 {[%clk 0:02:39]}  Nd7 {[%clk 0:02:15]} 16. Bf4 {[%clk 0:02:32]}  h6 {[%clk 0:02:09]} 17. h4 {[%clk 0:02:24]}  Rd8 {[%clk 0:01:56]} 18. Rd2 {[%clk 0:02:21]}  Nb6 {[%clk 0:01:48]} 19. Bb3 {[%clk 0:02:08]}  Rxd2 {[%clk 0:01:45]} 20. Bxd2 {[%clk 0:02:07]}  Na5 {[%clk 0:01:28]} 21. Ba2 {[%clk 0:01:54]}  Nac4 {[%clk 0:01:27]} 22. Bc1 {[%clk 0:01:48]}  Bd7 {[%clk 0:01:27]} 23. b4 {[%clk 0:01:43]}  Rc8 {[%clk 0:01:24]} 24. Ne4 {[%clk 0:01:39]}  Bc6 {[%clk 0:01:22]} 25. Nc5 {[%clk 0:01:29]}  Bxf3 {[%clk 0:01:13]} 26. gxf3 {[%clk 0:01:30]}  Bxc5 {[%clk 0:01:03]} 27. bxc5 {[%clk 0:01:31]}  Rxc5 {[%clk 0:01:04]} 28. f4 {[%clk 0:01:32]}  Nd5 {[%clk 0:00:52]} 29. Bb1 {[%clk 0:01:23]}  Nxe5 {[%clk 0:00:41]} 30. Be4 {[%clk 0:01:10]}  Ng6 {[%clk 0:00:16]} 31. f5 {[%clk 0:01:08]}  Nxh4 {[%clk 0:00:13]} 32. fxe6 {[%clk 0:01:08]}  fxe6 {[%clk 0:00:14]} 33. Bd2 {[%clk 0:01:03]}  Kf7 {[%clk 0:00:09]} 34. Rb1 {[%clk 0:01:03]}  b6 {[%clk 0:00:04]} 35. a4 {[%clk 0:01:03]}  Nf6 {[%clk 0:00:02]} 36. Bh1 {[%clk 0:01:02]}  Rc4 {[%clk 0:00:01]} 37. a5 {[%clk 0:01:01]}  Rc2 {[%clk 0:00:01]} 38. Be1 {[%clk 0:00:59]}  Rc5 {[%clk 0:00:01]} 39. axb6 {[%clk 0:00:59]}  axb6 {[%clk 0:00:01]} 40. Rxb6 {[%clk 0:00:59]}  Rg5+ {[%clk 0:00:01]} 41. Kf1 {[%clk 0:01:00]}  Rf5 {[%clk 0:00:01]} 42. Rb7+ {[%clk 0:00:56]}  Kg6 {[%clk 0:00:02]} 43. Bc6 {[%clk 0:00:54]}  Nf3 {[%clk 0:00:02]} 44. Bc3 {[%clk 0:00:53]}  Ne5 {[%clk 0:00:02]} 45. Bb5 {[%clk 0:00:51]}  Kh5 {[%clk 0:00:02]} 46. Rxg7 {[%clk 0:00:50]}  Ne4 {[%clk 0:00:02]} 47. Be8+ {[%clk 0:00:44]}  Kh4 {[%clk 0:00:02]} 48. Bb4 {[%clk 0:00:41]}  Ng4 {[%clk 0:00:02]} 49. Be7+ {[%clk 0:00:40]}  Kh3 {[%clk 0:00:03]} 50. Bd7 {[%clk 0:00:29]}  Rxf2+ {[%clk 0:00:03]} 51. Ke1 {[%clk 0:00:29]}  Nd2 {[%clk 0:00:03]} 52. Rxg4 {[%clk 0:00:26]}  Kxg4 {[%clk 0:00:02]} 53. Kxf2 {[%clk 0:00:20]}  Kf5 {[%clk 0:00:02]} 54. Bd6 {[%clk 0:00:19]}  Ne4+ {[%clk 0:00:02]} 55. Ke3 {[%clk 0:00:19]}  Nxd6 {[%clk 0:00:03]} 56. Kf3 {[%clk 0:00:20]}  Nf7 {[%clk 0:00:03]} 57. Kg3 {[%clk 0:00:19]}  Kf6 {[%clk 0:00:02]} 58. Bc8 {[%clk 0:00:20]}  e5 {[%clk 0:00:02]} 59. Bb7 {[%clk 0:00:20]}  Nd6 {[%clk 0:00:03]} 60. Bd5 {[%clk 0:00:20]}  Kg5 {[%clk 0:00:03]} 61. Kh3 {[%clk 0:00:21]}  h5 {[%clk 0:00:03]} 62. Kg3 {[%clk 0:00:21]}  h4+ {[%clk 0:00:04]} 63. Kh3 {[%clk 0:00:22]}  Nf5 {[%clk 0:00:04]} 64. Be4 {[%clk 0:00:22]}  Ne7 {[%clk 0:00:04]} 65. Kg2 {[%clk 0:00:20]}  Kf4 {[%clk 0:00:04]} 66. Bb7 {[%clk 0:00:20]}  Ng6 {[%clk 0:00:04]} 67. Kh3 {[%clk 0:00:20]}  Kg5 {[%clk 0:00:05]} 68. Be4 {[%clk 0:00:19]}  Nf4+ {[%clk 0:00:05]} 69. Kh2 {[%clk 0:00:20]}  Kg4 {[%clk 0:00:06]} 70. Bc6 {[%clk 0:00:19]}  Nd3 {[%clk 0:00:03]} 71. Bd7+ {[%clk 0:00:20]}  Kg5 {[%clk 0:00:03]} 72. Bb5 {[%clk 0:00:21]}  Nf2 {[%clk 0:00:03]} 73. Bd7 {[%clk 0:00:21]}  Kf4 {[%clk 0:00:02]} 74. Bb5 {[%clk 0:00:21]}  e4 {[%clk 0:00:02]} 75. Be2 {[%clk 0:00:22]}  e3 {[%clk 0:00:02]} 76. Bh5 {[%clk 0:00:22]}  Ne4 {[%clk 0:00:03]} 77. Be2 {[%clk 0:00:23]}  Nf6 {[%clk 0:00:03]} 78. Kh3 {[%clk 0:00:23]}  Kg5 {[%clk 0:00:03]} 79. Bf3 {[%clk 0:00:22]}  Nd7 {[%clk 0:00:03]} 80. Bd5 {[%clk 0:00:23]}  Ne5 {[%clk 0:00:03]} 81. Bb3 {[%clk 0:00:22]}  Nd3 {[%clk 0:00:03]} 82. Bd1 {[%clk 0:00:23]}  Nf4+ {[%clk 0:00:03]} 83. Kh2 {[%clk 0:00:22]}  Kf5 {[%clk 0:00:04]} 84. Bf3 {[%clk 0:00:22]}  Ke5 {[%clk 0:00:04]} 85. Kg1 {[%clk 0:00:23]}  Kd4 {[%clk 0:00:04]} 86. Kf1 {[%clk 0:00:23]}  Kd3 {[%clk 0:00:05]} 87. Ke1 {[%clk 0:00:24]}  h3 {[%clk 0:00:05]} 88. Bc6 {[%clk 0:00:24]}  Ng2+ {[%clk 0:00:03]} 89. Kf1 {[%clk 0:00:22]}  e2+ {[%clk 0:00:03]} 90. Kf2 {[%clk 0:00:23]}  e1=Q+ {[%clk 0:00:04]} 91. Kf3 {[%clk 0:00:23]}  Qe3+ {[%clk 0:00:05]} 92. Kg4 {[%clk 0:00:23]}  Ne1 {[%clk 0:00:04]} 93. Bd5 {[%clk 0:00:22]}  h2 {[%clk 0:00:05]} 94. Bb7 {[%clk 0:00:21]}  Kd2 {[%clk 0:00:06]} 95. Bh1 {[%clk 0:00:21]}  Qg1+ {[%clk 0:00:06]} 96. Kh3 {[%clk 0:00:21]}  Qxh1 {[%clk 0:00:06]} 97. Kh4 {[%clk 0:00:22]}  Qg1 {[%clk 0:00:06]} 98. Kh5 {[%clk 0:00:23]}  h1=Q# {[%clk 0:00:07]} 0-1


[Site "https://www.chess.com"]

[Event "Titled Tuesday Blitz November 07 Late 2023"]
[White "Maksimovic, Bojan"]
[Black "Zakarian, David"]
[WhiteFideId "14408120"]
[BlackFideId "13301276"]
[WhiteElo "2741"]
[BlackElo "2411"]
[Result "1/2-1/2"]
[Round "1"]
[TimeControl "180+1"]
[Date "2023.11.07"]
[WhiteClock "0:00:09"]
[BlackClock "0:00:38"]
[Board "69"]

1. e4 {[%clk 0:03:00]}  c5 {[%clk 0:02:59]} 2. Nf3 {[%clk 0:03:01]}  e6 {[%clk 0:02:58]} 3. d4 {[%clk 0:03:01]}  cxd4 {[%clk 0:02:58]} 4. Nxd4 {[%clk 0:03:02]}  a6 {[%clk 0:02:58]} 5. Nc3 {[%clk 0:02:58]}  Qc7 {[%clk 0:02:58]} 6. Qd3 {[%clk 0:02:57]}  Nf6 {[%clk 0:02:53]} 7. Qg3 {[%clk 0:02:56]}  Qxg3 {[%clk 0:02:50]} 8. hxg3 {[%clk 0:02:57]}  Bb4 {[%clk 0:02:48]} 9. Bd3 {[%clk 0:02:46]}  Nc6 {[%clk 0:02:45]} 10. Nxc6 {[%clk 0:02:43]}  dxc6 {[%clk 0:02:45]} 11. Bd2 {[%clk 0:02:39]}  e5 {[%clk 0:02:44]} 12. f3 {[%clk 0:02:33]}  Be6 {[%clk 0:02:44]} 13. g4 {[%clk 0:02:32]}  O-O-O {[%clk 0:02:36]} 14. a3 {[%clk 0:02:29]}  Be7 {[%clk 0:02:31]} 15. Ke2 {[%clk 0:02:20]}  h6 {[%clk 0:02:29]} 16. Nd1 {[%clk 0:02:21]}  Nd7 {[%clk 0:02:21]} 17. Ne3 {[%clk 0:02:19]}  Nc5 {[%clk 0:02:20]} 18. Bc4 {[%clk 0:02:17]}  Bxc4+ {[%clk 0:02:12]} 19. Nxc4 {[%clk 0:02:18]}  f6 {[%clk 0:02:12]} 20. a4 {[%clk 0:02:14]}  Ne6 {[%clk 0:02:09]} 21. c3 {[%clk 0:02:08]}  Kc7 {[%clk 0:02:02]} 22. a5 {[%clk 0:02:07]}  Nc5 {[%clk 0:02:00]} 23. Be3 {[%clk 0:01:58]}  Rd7 {[%clk 0:01:49]} 24. b4 {[%clk 0:01:53]}  Ne6 {[%clk 0:01:44]} 25. g3 {[%clk 0:01:48]}  Kb8 {[%clk 0:01:32]} 26. Bb6 {[%clk 0:01:44]}  Bd8 {[%clk 0:01:32]} 27. Rad1 {[%clk 0:01:45]}  Rxd1 {[%clk 0:01:27]} 28. Rxd1 {[%clk 0:01:44]}  Bxb6 {[%clk 0:01:27]} 29. axb6 {[%clk 0:01:39]}  Rd8 {[%clk 0:01:27]} 30. Rxd8+ {[%clk 0:01:23]}  Nxd8 {[%clk 0:01:28]} 31. Nd6 {[%clk 0:01:24]}  Ne6 {[%clk 0:01:22]} 32. Ke3 {[%clk 0:01:24]}  Nf8 {[%clk 0:01:17]} 33. c4 {[%clk 0:01:20]}  Ne6 {[%clk 0:01:17]} 34. c5 {[%clk 0:01:13]}  Nd4 {[%clk 0:01:17]} 35. Ne8 {[%clk 0:01:06]}  Nc2+ {[%clk 0:01:06]} 36. Kd2 {[%clk 0:01:06]}  Nxb4 {[%clk 0:01:06]} 37. Nxg7 {[%clk 0:01:06]}  a5 {[%clk 0:01:06]} 38. Kc3 {[%clk 0:00:32]}  Na6 {[%clk 0:01:01]} 39. Ne6 {[%clk 0:00:32]}  Kc8 {[%clk 0:00:56]} 40. f4 {[%clk 0:00:32]}  Kd7 {[%clk 0:00:52]} 41. f5 {[%clk 0:00:33]}  Ke7 {[%clk 0:00:46]} 42. Kc4 {[%clk 0:00:33]}  Nb4 {[%clk 0:00:40]} 43. Kc3 {[%clk 0:00:29]}  Na6 {[%clk 0:00:39]} 44. Kc4 {[%clk 0:00:15]}  Nb4 {[%clk 0:00:38]} 45. Kc3 {[%clk 0:00:09]}  Na6 {[%clk 0:00:38]} 1/2-1/2


[Site "https://www.chess.com"]

[Event "Titled Tuesday Blitz November 07 Late 2023"]
[White "Bochnicka, Vladimir"]
[Black "Rosen, Eric"]
[WhiteFideId "14943450"]
[BlackFideId "2032562"]
[WhiteElo "2411"]
[BlackElo "2739"]
[Result "0-1"]
[Round "1"]
[TimeControl "180+1"]
[Date "2023.11.07"]
[WhiteClock "0:00:03"]
[BlackClock "0:00:04"]
[Board "70"]

1. e4 {[%clk 0:02:52]}  c5 {[%clk 0:02:59]} 2. Nf3 {[%clk 0:02:53]}  e6 {[%clk 0:02:57]} 3. g3 {[%clk 0:02:52]}  d5 {[%clk 0:02:57]} 4. exd5 {[%clk 0:02:52]}  exd5 {[%clk 0:02:58]} 5. d4 {[%clk 0:02:52]}  cxd4 {[%clk 0:02:31]} 6. Nxd4 {[%clk 0:02:52]}  Bc5 {[%clk 0:02:30]} 7. Bg2 {[%clk 0:02:49]}  Nc6 {[%clk 0:02:24]} 8. Be3 {[%clk 0:02:43]}  Nxd4 {[%clk 0:02:12]} 9. Bxd4 {[%clk 0:02:42]}  Qe7+ {[%clk 0:02:12]} 10. Kf1 {[%clk 0:02:28]}  Nf6 {[%clk 0:01:47]} 11. Nc3 {[%clk 0:02:19]}  Be6 {[%clk 0:01:38]} 12. Qd3 {[%clk 0:02:07]}  O-O {[%clk 0:01:30]} 13. Re1 {[%clk 0:02:04]}  Rfd8 {[%clk 0:01:27]} 14. Ne2 {[%clk 0:01:56]}  Bd6 {[%clk 0:01:07]} 15. Kg1 {[%clk 0:01:45]}  Ne4 {[%clk 0:00:51]} 16. Nc3 {[%clk 0:01:24]}  Nxc3 {[%clk 0:00:44]} 17. Bxc3 {[%clk 0:01:21]}  Bc5 {[%clk 0:00:32]} 18. Bd4 {[%clk 0:01:16]}  Rac8 {[%clk 0:00:25]} 19. c3 {[%clk 0:01:08]}  b6 {[%clk 0:00:24]} 20. h3 {[%clk 0:01:02]}  h5 {[%clk 0:00:21]} 21. Kh2 {[%clk 0:01:00]}  h4 {[%clk 0:00:20]} 22. Re2 {[%clk 0:00:52]}  Qg5 {[%clk 0:00:20]} 23. Re5 {[%clk 0:00:48]}  Qh6 {[%clk 0:00:19]} 24. Rhe1 {[%clk 0:00:34]}  Bd6 {[%clk 0:00:18]} 25. R5e3 {[%clk 0:00:18]}  b5 {[%clk 0:00:13]} 26. Be5 {[%clk 0:00:15]}  Bc5 {[%clk 0:00:09]} 27. Bd4 {[%clk 0:00:14]}  Bd6 {[%clk 0:00:07]} 28. Be5 {[%clk 0:00:12]}  Bc5 {[%clk 0:00:07]} 29. Bf4 {[%clk 0:00:07]}  Qf6 {[%clk 0:00:05]} 30. Rf3 {[%clk 0:00:03]}  hxg3+ {[%clk 0:00:05]} 31. fxg3 {[%clk 0:00:03]}  Bf5 {[%clk 0:00:04]} 32. Qf1 {[%clk 0:00:03]}  Be4 {[%clk 0:00:04]} 33. Be5 {[%clk 0:00:03]}  Qxe5 {[%clk 0:00:03]} 34. Rxf7 {[%clk 0:00:03]}  Rf8 {[%clk 0:00:04]} 35. Rxf8+ {[%clk 0:00:02]}  Rxf8 {[%clk 0:00:05]} 36. Qe2 {[%clk 0:00:03]}  Bd6 {[%clk 0:00:05]} 37. Qe3 {[%clk 0:00:02]}  Re8 {[%clk 0:00:03]} 38. Bxe4 {[%clk 0:00:03]}  Qxe4 {[%clk 0:00:03]} 39. Qxe4 {[%clk 0:00:03]}  Rxe4 {[%clk 0:00:03]} 40. Rd1 {[%clk 0:00:04]}  Re2+ {[%clk 0:00:04]} 41. Kg1 {[%clk 0:00:05]}  Rxb2 {[%clk 0:00:04]} 42. Rxd5 {[%clk 0:00:04]}  Bxg3 {[%clk 0:00:04]} 43. Rxb5 {[%clk 0:00:03]}  Rxb5 {[%clk 0:00:04]} 0-1


[Site "https://www.chess.com"]

[Event "Titled Tuesday Blitz November 07 Late 2023"]
[White "Haydon, David L"]
[Black "UK_23"]
[WhiteFideId "415405"]
[WhiteElo "2732"]
[BlackElo "2397"]
[Result "0-1"]
[Round "1"]
[TimeControl "180+1"]
[Date "2023.11.07"]
[WhiteClock "0:02:38"]
[BlackClock "0:01:47"]
[Board "73"]

1. d4 {[%clk 0:03:00]}  d5 {[%clk 0:02:59]} 2. Nf3 {[%clk 0:03:00]}  Nf6 {[%clk 0:02:57]} 3. c4 {[%clk 0:03:00]}  e6 {[%clk 0:02:57]} 4. cxd5 {[%clk 0:03:00]}  exd5 {[%clk 0:02:56]} 5. Nc3 {[%clk 0:03:01]}  Be7 {[%clk 0:02:54]} 6. Bf4 {[%clk 0:03:01]}  O-O {[%clk 0:02:53]} 7. e3 {[%clk 0:03:01]}  c6 {[%clk 0:02:53]} 8. Bd3 {[%clk 0:03:01]}  Bg4 {[%clk 0:02:53]} 9. h3 {[%clk 0:02:59]}  Bh5 {[%clk 0:02:52]} 10. g4 {[%clk 0:02:59]}  Bg6 {[%clk 0:02:51]} 11. Ne5 {[%clk 0:02:59]}  Bxd3 {[%clk 0:02:50]} 12. Qxd3 {[%clk 0:02:58]}  Nbd7 {[%clk 0:02:50]} 13. O-O-O {[%clk 0:02:57]}  Qa5 {[%clk 0:02:40]} 14. Kb1 {[%clk 0:02:54]}  Nxe5 {[%clk 0:02:35]} 15. Bxe5 {[%clk 0:02:53]}  Nd7 {[%clk 0:02:32]} 16. Bg3 {[%clk 0:02:50]}  b5 {[%clk 0:02:32]} 17. Rc1 {[%clk 0:02:48]}  Rfc8 {[%clk 0:02:31]} 18. Rc2 {[%clk 0:02:47]}  Nb6 {[%clk 0:02:24]} 19. b3 {[%clk 0:02:44]}  b4 {[%clk 0:02:14]} 20. Ne2 {[%clk 0:02:43]}  c5 {[%clk 0:02:15]} 21. dxc5 {[%clk 0:02:41]}  Rxc5 {[%clk 0:02:15]} 22. Rxc5 {[%clk 0:02:41]}  Bxc5 {[%clk 0:02:15]} 23. Rc1 {[%clk 0:02:41]}  Bf8 {[%clk 0:02:15]} 24. Nd4 {[%clk 0:02:41]}  Rc8 {[%clk 0:02:07]} 25. Nc6 {[%clk 0:02:40]}  Rxc6 {[%clk 0:01:48]} 26. Rxc6 {[%clk 0:02:39]}  g6 {[%clk 0:01:47]} 27. Be5 {[%clk 0:02:38]}  Qa3 {[%clk 0:01:47]} 0-1


[Site "https://www.chess.com"]

[Event "Titled Tuesday Blitz November 07 Late 2023"]
[White "Akobian, Varuzhan"]
[Black "Kazakov, Mikhail"]
[WhiteFideId "13300580"]
[BlackFideId "14102749"]
[WhiteElo "2716"]
[BlackElo "2375"]
[Result "0-1"]
[Round "1"]
[TimeControl "180+1"]
[Date "2023.11.07"]
[WhiteClock "0:00:00"]
[BlackClock "0:00:05"]
[Board "79"]

1. d4 {[%clk 0:02:57]}  Nf6 {[%clk 0:02:58]} 2. c4 {[%clk 0:02:55]}  g6 {[%clk 0:02:55]} 3. Nc3 {[%clk 0:02:52]}  d5 {[%clk 0:02:55]} 4. Bg5 {[%clk 0:02:49]}  Bg7 {[%clk 0:02:53]} 5. Bxf6 {[%clk 0:02:47]}  Bxf6 {[%clk 0:02:52]} 6. cxd5 {[%clk 0:02:46]}  c5 {[%clk 0:02:50]} 7. dxc5 {[%clk 0:02:42]}  Qa5 {[%clk 0:02:42]} 8. Qd2 {[%clk 0:02:41]}  Nd7 {[%clk 0:02:35]} 9. e3 {[%clk 0:02:37]}  Nxc5 {[%clk 0:02:32]} 10. Nf3 {[%clk 0:02:34]}  Bd7 {[%clk 0:02:19]} 11. Rc1 {[%clk 0:02:31]}  O-O {[%clk 0:02:13]} 12. Be2 {[%clk 0:02:26]}  Rac8 {[%clk 0:02:09]} 13. O-O {[%clk 0:02:19]}  Bxc3 {[%clk 0:01:50]} 14. Qxc3 {[%clk 0:02:13]}  Qxc3 {[%clk 0:01:49]} 15. Rxc3 {[%clk 0:02:08]}  Na4 {[%clk 0:01:48]} 16. Rxc8 {[%clk 0:02:01]}  Rxc8 {[%clk 0:01:48]} 17. Nd4 {[%clk 0:01:48]}  Rc5 {[%clk 0:01:19]} 18. b3 {[%clk 0:01:27]}  Nc3 {[%clk 0:01:16]} 19. Rc1 {[%clk 0:01:24]}  Nxe2+ {[%clk 0:01:03]} 20. Nxe2 {[%clk 0:01:23]}  Rxd5 {[%clk 0:01:04]} 21. Nc3 {[%clk 0:01:16]}  Rd2 {[%clk 0:01:01]} 22. Rd1 {[%clk 0:01:16]}  Rxd1+ {[%clk 0:00:59]} 23. Nxd1 {[%clk 0:01:15]}  e5 {[%clk 0:00:58]} 24. f3 {[%clk 0:01:12]}  Kf8 {[%clk 0:00:56]} 25. Kf2 {[%clk 0:01:12]}  Ke7 {[%clk 0:00:56]} 26. e4 {[%clk 0:01:12]}  Kd6 {[%clk 0:00:54]} 27. b4 {[%clk 0:01:10]}  a5 {[%clk 0:00:49]} 28. a3 {[%clk 0:00:45]}  axb4 {[%clk 0:00:48]} 29. axb4 {[%clk 0:00:45]}  Bb5 {[%clk 0:00:48]} 30. Nc3 {[%clk 0:00:41]}  Bc4 {[%clk 0:00:48]} 31. Ke3 {[%clk 0:00:39]}  f5 {[%clk 0:00:45]} 32. g3 {[%clk 0:00:26]}  Kc6 {[%clk 0:00:44]} 33. exf5 {[%clk 0:00:22]}  gxf5 {[%clk 0:00:44]} 34. f4 {[%clk 0:00:22]}  Kd6 {[%clk 0:00:42]} 35. h4 {[%clk 0:00:14]}  Ke6 {[%clk 0:00:33]} 36. Na4 {[%clk 0:00:12]}  Kd6 {[%clk 0:00:23]} 37. Nc3 {[%clk 0:00:08]}  Ke6 {[%clk 0:00:18]} 38. Nb1 {[%clk 0:00:08]}  Kd5 {[%clk 0:00:17]} 39. Nd2 {[%clk 0:00:07]}  Bb5 {[%clk 0:00:15]} 40. Nf3 {[%clk 0:00:07]}  e4 {[%clk 0:00:14]} 41. Ng5 {[%clk 0:00:07]}  h6 {[%clk 0:00:13]} 42. Nf7 {[%clk 0:00:06]}  h5 {[%clk 0:00:13]} 43. Ne5 {[%clk 0:00:06]}  Be8 {[%clk 0:00:12]} 44. Ke2 {[%clk 0:00:04]}  Bb5+ {[%clk 0:00:12]} 45. Ke3 {[%clk 0:00:05]}  Be8 {[%clk 0:00:13]} 46. Kf2 {[%clk 0:00:05]}  Kd4 {[%clk 0:00:11]} 47. Ke2 {[%clk 0:00:05]}  Bb5+ {[%clk 0:00:11]} 48. Kd2 {[%clk 0:00:05]}  e3+ {[%clk 0:00:11]} 49. Ke1 {[%clk 0:00:05]}  Ke4 {[%clk 0:00:11]} 50. Nf7 {[%clk 0:00:05]}  Kf3 {[%clk 0:00:09]} 51. Nd6 {[%clk 0:00:06]}  Bd7 {[%clk 0:00:08]} 52. Nxb7 {[%clk 0:00:06]}  Kxg3 {[%clk 0:00:08]} 53. Nc5 {[%clk 0:00:05]}  Bb5 {[%clk 0:00:07]} 54. Ne6 {[%clk 0:00:05]}  Kxh4 {[%clk 0:00:06]} 55. Nd4 {[%clk 0:00:05]}  Bd7 {[%clk 0:00:04]} 56. Ke2 {[%clk 0:00:05]}  Kg3 {[%clk 0:00:04]} 57. Kxe3 {[%clk 0:00:06]}  h4 {[%clk 0:00:04]} 58. Nf3 {[%clk 0:00:06]}  h3 {[%clk 0:00:05]} 59. Ne5 {[%clk 0:00:03]}  Bc8 {[%clk 0:00:05]} 60. Nf3 {[%clk 0:00:00]}  Bb7 {[%clk 0:00:05]} 0-1


[Site "https://www.chess.com"]

[Event "Titled Tuesday Blitz November 07 Late 2023"]
[White "Pakleza, Zbigniew"]
[Black "Skaric, Djuro"]
[WhiteFideId "1119290"]
[BlackFideId "934569"]
[WhiteElo "2715"]
[BlackElo "2372"]
[Result "1-0"]
[Round "1"]
[TimeControl "180+1"]
[Date "2023.11.07"]
[WhiteClock "0:00:08"]
[BlackClock "0:00:00"]
[Board "81"]

1. d4 {[%clk 0:03:00]}  d6 {[%clk 0:03:00]} 2. Nf3 {[%clk 0:02:59]}  g6 {[%clk 0:03:01]} 3. Bf4 {[%clk 0:02:59]}  Bg7 {[%clk 0:03:01]} 4. e3 {[%clk 0:02:59]}  Nf6 {[%clk 0:03:02]} 5. h3 {[%clk 0:02:59]}  O-O {[%clk 0:03:03]} 6. Be2 {[%clk 0:03:00]}  Nc6 {[%clk 0:03:03]} 7. c4 {[%clk 0:02:59]}  Nd7 {[%clk 0:03:02]} 8. O-O {[%clk 0:02:58]}  e5 {[%clk 0:03:01]} 9. Bh2 {[%clk 0:02:59]}  h6 {[%clk 0:03:00]} 10. Nc3 {[%clk 0:02:59]}  f5 {[%clk 0:03:00]} 11. Rc1 {[%clk 0:02:58]}  g5 {[%clk 0:03:00]} 12. dxe5 {[%clk 0:02:58]}  dxe5 {[%clk 0:03:00]} 13. Qd5+ {[%clk 0:02:56]}  Kh8 {[%clk 0:02:59]} 14. Rfd1 {[%clk 0:02:56]}  f4 {[%clk 0:02:56]} 15. exf4 {[%clk 0:02:52]}  exf4 {[%clk 0:02:56]} 16. Bd3 {[%clk 0:02:41]}  Nb6 {[%clk 0:02:54]} 17. Qxd8 {[%clk 0:02:36]}  Rxd8 {[%clk 0:02:53]} 18. b3 {[%clk 0:01:56]}  Nb4 {[%clk 0:02:40]} 19. Bb1 {[%clk 0:01:36]}  Rxd1+ {[%clk 0:02:36]} 20. Nxd1 {[%clk 0:01:37]}  Be6 {[%clk 0:02:32]} 21. h4 {[%clk 0:01:21]}  g4 {[%clk 0:02:28]} 22. Ne1 {[%clk 0:01:12]}  Re8 {[%clk 0:02:21]} 23. Bxf4 {[%clk 0:01:01]}  Bxc4 {[%clk 0:02:21]} 24. Ne3 {[%clk 0:00:56]}  Be6 {[%clk 0:02:05]} 25. Bg3 {[%clk 0:00:29]}  N4d5 {[%clk 0:02:02]} 26. Nxd5 {[%clk 0:00:28]}  Nxd5 {[%clk 0:02:02]} 27. Bg6 {[%clk 0:00:23]}  Rc8 {[%clk 0:01:58]} 28. Nd3 {[%clk 0:00:20]}  c6 {[%clk 0:01:58]} 29. Re1 {[%clk 0:00:18]}  Bg8 {[%clk 0:01:54]} 30. h5 {[%clk 0:00:14]}  Nc3 {[%clk 0:01:49]} 31. Re7 {[%clk 0:00:06]}  Nd5 {[%clk 0:01:20]} 32. Rxb7 {[%clk 0:00:05]}  a5 {[%clk 0:01:10]} 33. Ne5 {[%clk 0:00:05]}  c5 {[%clk 0:01:04]} 34. Nd7 {[%clk 0:00:05]}  c4 {[%clk 0:01:02]} 35. bxc4 {[%clk 0:00:05]}  Rxc4 {[%clk 0:01:01]} 36. Rb8 {[%clk 0:00:05]}  Nc7 {[%clk 0:00:56]} 37. Bf7 {[%clk 0:00:02]}  Rc1+ {[%clk 0:00:32]} 38. Kh2 {[%clk 0:00:02]}  Bd4 {[%clk 0:00:27]} 39. Rxg8+ {[%clk 0:00:02]}  Kh7 {[%clk 0:00:28]} 40. Rc8 {[%clk 0:00:02]}  Kg7 {[%clk 0:00:19]} 41. Bg6 {[%clk 0:00:03]}  Ne6 {[%clk 0:00:12]} 42. Rxc1 {[%clk 0:00:03]}  a4 {[%clk 0:00:12]} 43. Rd1 {[%clk 0:00:03]}  Bc3 {[%clk 0:00:11]} 44. Rd3 {[%clk 0:00:02]}  Bb2 {[%clk 0:00:11]} 45. Bf5 {[%clk 0:00:02]}  Ng5 {[%clk 0:00:11]} 46. Bxg4 {[%clk 0:00:02]}  a3 {[%clk 0:00:10]} 47. Be5+ {[%clk 0:00:03]}  Bxe5+ {[%clk 0:00:09]} 48. Nxe5 {[%clk 0:00:04]}  Kf6 {[%clk 0:00:10]} 49. Nf3 {[%clk 0:00:03]}  Ne4 {[%clk 0:00:11]} 50. Rxa3 {[%clk 0:00:03]}  Nxf2 {[%clk 0:00:11]} 51. Ra6+ {[%clk 0:00:04]}  Ke7 {[%clk 0:00:11]} 52. Bh3 {[%clk 0:00:05]}  Nd3 {[%clk 0:00:10]} 53. Rxh6 {[%clk 0:00:05]}  Nf4 {[%clk 0:00:09]} 54. Ra6 {[%clk 0:00:04]}  Nxh5 {[%clk 0:00:09]} 55. a4 {[%clk 0:00:05]}  Nf4 {[%clk 0:00:10]} 56. a5 {[%clk 0:00:05]}  Nd5 {[%clk 0:00:10]} 57. Rh6 {[%clk 0:00:05]}  Nb4 {[%clk 0:00:11]} 58. a6 {[%clk 0:00:05]}  Nxa6 {[%clk 0:00:12]} 59. Rxa6 {[%clk 0:00:05]}  Kf7 {[%clk 0:00:13]} 60. g4 {[%clk 0:00:06]}  Kg7 {[%clk 0:00:14]} 61. g5 {[%clk 0:00:06]}  Kf7 {[%clk 0:00:15]} 62. Kg3 {[%clk 0:00:07]}  Ke7 {[%clk 0:00:15]} 63. Kf4 {[%clk 0:00:08]}  Kf7 {[%clk 0:00:16]} 64. Ke5 {[%clk 0:00:08]}  Kg7 {[%clk 0:00:17]} 65. Bf5 {[%clk 0:00:08]}  Kg8 {[%clk 0:00:00]} 66. Ra7 {[%clk 0:00:08]} 1-0


[Site "https://www.chess.com"]